fUSD/lending_fUSD_20250611
["ID","MTS","AMOUNT","RATE_DAILY","PERIOD"]
[365385874,1749640234739,-13785.71039539,0.000199,2]
[365385875,1749640234748,-1665.33865494,0.000199,2]
[365385876,1749640234758,-22404.29516157,0.000199,2]
[365385877,1749640234768,-1230.65545044,0.000199,2]
[365385878,1749640234778,-551.23580943,0.000199,2]
[365385879,1749640234788,-641.57716035,0.000199,2]
[365385880,1749640234798,-591.93993254,0.000199,2]
[365385881,1749640234808,-500.0,0.00019973,2]
[365385882,1749640234817,-500.0,0.00019973,2]
[365385883,1749640234828,-500.0,0.00019973,2]
[365385884,1749640234837,-500.0,0.00019973,2]
[365385885,1749640234847,-150.0,0.00019981,2]
[365385886,1749640234857,-150.0,0.00019981,2]
[365385887,1749640234866,-150.0,0.00019981,2]
[365385888,1749640234877,-500.0,0.00019981,2]
[365385889,1749640234887,-150.0,0.00019981,2]
[365385890,1749640234896,-151.94949467,0.00019981,2]
[365385891,1749640234906,-150.0,0.00019981,2]
[365385892,1749640234915,-156.49239323,0.00019981,2]
[365385893,1749640234925,-150.0,0.00019981,2]
[365385894,1749640234935,-150.0,0.00019981,2]
[365385895,1749640234944,-155.95281392,0.00019981,2]
[365385896,1749640234954,-150.0,0.00019981,2]
[365385897,1749640234964,-151.74074967,0.00019981,2]
[365385898,1749640234973,-158.03830528,0.00019981,2]
[365385899,1749640234983,-2047.3665092,0.00019986,2]
[365385900,1749640234993,-1702.3549308,0.00019986,2]
[365385901,1749640235003,-1357.3433524,0.00019986,2]
[365385902,1749640235012,-1012.331774,0.00019986,2]
[365385903,1749640235022,-667.3201955,0.00019986,2]
[365385904,1749640235032,-179.6459034,0.00019986,2]
[365385905,1749640235042,-179.6459034,0.00019986,2]
[365385906,1749640235051,-179.6459034,0.00019986,2]
[365385907,1749640235061,-179.6459034,0.00019986,2]
[365385908,1749640235071,-179.6459034,0.00019986,2]
[365385909,1749640235080,-1050.07088912,0.0001999,2]
[365385910,1749640235090,-150.47,0.0001999,2]
[365385911,1749640235099,-150.47,0.0001999,2]
[365385912,1749640235112,-150.47,0.0001999,2]
[365385913,1749640235122,-150.47,0.0001999,2]
[365385914,1749640235131,-150.47,0.0001999,2]
[365385915,1749640235140,-150.47,0.0001999,2]
[365385916,1749640235151,-150.47,0.0001999,2]
[365385917,1749640235160,-5000.0,0.0001999,13]
[365385918,1749640235170,-5000.0,0.0001999,14]
[365385919,1749640235179,-5000.0,0.0001999,5]
[365385920,1749640235190,-4021.11572342,0.0001999,2]
[365385921,1749640235200,-1050.07088912,0.0001999,2]
[365385922,1749640235209,-1050.07088912,0.0001999,2]
[365385923,1749640235218,-150.47,0.0001999,2]
[365385924,1749640235228,-150.47,0.0001999,2]
[365385925,1749640235238,-150.47,0.0001999,2]
[365385926,1749640235248,-150.47,0.0001999,2]
[365385927,1749640235257,-150.47,0.0001999,2]
[365385928,1749640235267,-150.47,0.0001999,2]
[365385929,1749640235276,-150.47,0.0001999,2]
[365385930,1749640235286,-150.47,0.0001999,2]
[365385931,1749640235295,-150.47,0.0001999,2]
[365385932,1749640235305,-150.47,0.0001999,2]
[365385933,1749640235315,-150.47,0.0001999,2]
[365385934,1749640235324,-150.47,0.0001999,2]
[365385935,1749640235334,-150.47,0.0001999,2]
[365385936,1749640235343,-150.47,0.0001999,2]
[365385937,1749640235352,-150.47,0.0001999,2]
[365385938,1749640235361,-150.47,0.0001999,2]
[365385939,1749640235371,-150.47,0.0001999,2]
[365385940,1749640235381,-150.47,0.0001999,2]
[365385941,1749640235391,-150.47,0.0001999,2]
[365385942,1749640235400,-150.47,0.0001999,2]
[365385943,1749640235410,-150.47,0.0001999,2]
[365385944,1749640235419,-150.47,0.0001999,2]
[365385945,1749640235429,-150.47,0.0001999,2]
[365385946,1749640235439,-150.47,0.0001999,2]
[365385947,1749640235449,-150.47,0.0001999,2]
[365385948,1749640235460,-150.47,0.0001999,2]
[365385949,1749640235470,-150.47,0.0001999,2]
[365385950,1749640235480,-150.47,0.0001999,2]
[365385951,1749640235493,-150.47,0.0001999,2]
[365385952,1749640235503,-150.47,0.0001999,2]
[365385953,1749640235512,-150.47,0.0001999,2]
[365385954,1749640235522,-150.47,0.0001999,2]
[365385955,1749640235532,-150.47,0.0001999,2]
[365385956,1749640235541,-150.47,0.0001999,2]
[365385957,1749640235551,-150.47,0.0001999,2]
[365385958,1749640235561,-150.47,0.0001999,2]
[365385959,1749640235571,-150.47,0.0001999,2]
[365385960,1749640235581,-150.47,0.0001999,2]
[365385961,1749640235591,-150.47,0.0001999,2]
[365385962,1749640235600,-150.47,0.0001999,2]
[365385963,1749640235610,-150.47,0.0001999,2]
[365385964,1749640235620,-150.47,0.0001999,2]
[365385965,1749640235630,-150.47,0.0001999,2]
[365385966,1749640235639,-150.47,0.0001999,2]
[365385967,1749640235649,-150.47,0.0001999,2]
[365385968,1749640235658,-150.47,0.0001999,2]
[365385969,1749640235667,-150.47,0.0001999,2]
[365385970,1749640235677,-150.47,0.0001999,2]
[365385971,1749640235686,-150.47,0.0001999,2]
[365385972,1749640235696,-150.47,0.0001999,2]
[365385973,1749640235705,-150.47,0.0001999,2]
[365385974,1749640235714,-150.47,0.0001999,2]
[365385975,1749640235724,-150.47,0.0001999,2]
[365385976,1749640235733,-150.47,0.0001999,2]
[365385977,1749640235743,-150.47,0.0001999,2]
[365385978,1749640235752,-150.47,0.0001999,2]
[365385979,1749640235762,-150.47,0.0001999,2]
[365385980,1749640235772,-150.47,0.0001999,2]
[365385981,1749640235782,-150.47,0.0001999,2]
[365385982,1749640235791,-150.47,0.0001999,2]
[365385983,1749640235800,-150.47,0.0001999,2]
[365385984,1749640235810,-150.47,0.0001999,2]
[365385985,1749640235820,-150.47,0.0001999,2]
[365385986,1749640235829,-150.47,0.0001999,2]
[365385987,1749640235839,-150.47,0.0001999,2]
[365385988,1749640235848,-227.57465178,0.00019995,2]
[365385989,1749640235857,-2392.3780876,0.00019995,2]
[365385990,1749640235866,-179.6459034,0.00019995,2]
[365385991,1749640235875,-300.0,0.00019999,2]
[365385992,1749640235884,-300.0,0.00019999,2]
[365385993,1749640235894,-1037.6829,0.00019999,2]
[365385994,1749640235903,-500.0,0.00019999,2]
[365385995,1749640235912,-150.0,0.00019999,2]
[365385996,1749640235921,-2003.52358345,0.00019999,2]
[365385997,1749640235931,-511.0,0.00019999,2]
[365385998,1749640235940,-196.11801095,0.0002,2]
[365385999,1749640235949,-69780.04526625,0.0002,3]
[365386000,1749640236309,-329.76386651,0.0002,3]
[365386001,1749640236320,-337.33255212,0.0002,3]
[365386002,1749640236331,-4496.51071674,0.0002,3]
[365386003,1749640236342,-1603.87089009,0.0002,3]
[365386004,1749640236382,-500.0,0.000173,2]
[365386005,1749640236392,-500.0,0.000173,2]
[365386006,1749640236404,-12.92391151,0.000173,2]
[365386007,1749640236470,-487.07608849,0.000173,2]
[365386008,1749640236480,-500.0,0.000173,2]
[365386009,1749640236491,-412.85581508,0.000173,2]
[365386010,1749640236502,-87.14418492,0.000173,2]
[365386011,1749640236511,-455.32480008,0.000173,2]
[365386012,1749640236522,-44.67519992,0.000173,2]
[365386013,1749640236532,-500.0,0.000173,2]
[365386014,1749640236541,-500.0,0.000173,2]
[365386015,1749640236550,-500.0,0.000173,2]
[365386016,1749640236559,-500.0,0.000173,2]
[365386017,1749640236568,-500.0,0.000173,2]
[365386018,1749640236577,-500.0,0.000173,2]
[365386019,1749640236587,-393.39887639,0.000173,2]
[365386020,1749640236596,-500.0,0.000173,2]
[365386021,1749640236605,-471.53841759,0.00019178,2]
[365386022,1749640236615,-630.17910451,0.00019178,2]
[365386023,1749640236624,-630.17910451,0.00019178,2]
[365386024,1749640236633,-3085.72463307,0.0002,3]
[365386027,1749640238081,-0.00574909,0.000173,2]
[365386028,1749640238170,-499.99425091,0.000173,2]
[365386029,1749640238180,-500.0,0.000173,2]
[365386030,1749640238189,-500.0,0.000173,2]
[365386031,1749640238198,-500.0,0.000173,2]
[365386032,1749640238207,-500.0,0.000173,2]
[365386033,1749640238216,-500.0,0.000173,2]
[365386034,1749640238225,-433.04159119,0.000173,2]
[365386035,1749640238234,-500.0,0.000173,2]
[365386036,1749640238244,-500.0,0.000173,2]
[365386037,1749640238253,-500.0,0.000173,2]
[365386038,1749640238262,-500.0,0.000173,2]
[365386039,1749640238272,-500.0,0.000173,2]
[365386040,1749640238281,-500.0,0.000173,2]
[365386041,1749640238292,-423.14169324,0.000173,2]
[365386042,1749640238301,-500.0,0.000173,2]
[365386043,1749640238311,-500.0,0.000173,2]
[365386044,1749640238320,-574.60140263,0.000173,2]
[365386045,1749640238330,-500.0,0.000173,2]
[365386046,1749640238339,-500.0,0.000173,2]
[365386047,1749640238349,-361.18136247,0.000173,2]
[365386048,1749640238359,-500.0,0.000173,2]
[365386049,1749640238368,-500.0,0.000173,2]
[365386050,1749640238377,-500.0,0.000173,2]
[365386052,1749640238386,-500.0,0.000173,2]
[365386053,1749640238396,-500.0,0.000173,2]
[365386054,1749640238405,-500.0,0.000173,2]
[365386055,1749640238414,-500.0,0.000173,2]
[365386056,1749640238423,-500.0,0.000173,2]
[365386057,1749640238433,-500.0,0.000173,2]
[365386058,1749640238442,-447.47664654,0.000173,2]
[365386059,1749640238451,-500.0,0.000173,2]
[365386060,1749640238461,-500.0,0.000173,2]
[365386061,1749640238470,-500.0,0.000173,2]
[365386062,1749640238480,-500.0,0.000173,2]
[365386063,1749640238490,-500.0,0.000173,2]
[365386064,1749640238499,-500.0,0.000173,2]
[365386065,1749640238508,-500.0,0.000173,2]
[365386066,1749640238518,-500.0,0.000173,2]
[365386067,1749640238527,-500.0,0.000173,2]
[365386068,1749640238538,-500.0,0.000173,2]
[365386069,1749640238547,-500.0,0.000173,2]
[365386070,1749640238556,-500.0,0.000173,2]
[365386071,1749640238565,-500.0,0.000173,2]
[365386072,1749640238575,-630.17910451,0.00019178,2]
[365386073,1749640238584,-630.17910451,0.00019178,2]
[365386074,1749640238594,-630.17910451,0.00019178,2]
[365386077,1749640238603,-630.17910451,0.00019178,2]
[365386078,1749640238612,-630.17910451,0.00019178,2]
[365386079,1749640238622,-630.17910451,0.00019178,2]
[365386080,1749640238631,-630.17910451,0.00019178,2]
[365386081,1749640238641,-630.17910451,0.00019178,2]
[365386082,1749640238651,-630.17910451,0.00019178,2]
[365386083,1749640238660,-630.17910451,0.00019178,2]
[365386084,1749640238670,-630.17910451,0.00019178,2]
[365386085,1749640238679,-630.17910451,0.00019178,2]
[365386086,1749640238689,-630.17910451,0.00019178,2]
[365386087,1749640238698,-630.17910451,0.00019178,2]
[365386088,1749640238707,-630.17910451,0.00019178,2]
[365386089,1749640238717,-630.17910451,0.00019178,2]
[365386090,1749640238726,-630.17910451,0.00019178,2]
[365386091,1749640238735,-630.17910451,0.00019178,2]
[365386092,1749640238745,-630.17910451,0.00019178,2]
[365386093,1749640238755,-630.17910451,0.00019178,2]
[365386094,1749640238764,-630.17910451,0.00019178,2]
[365386095,1749640238773,-630.17910451,0.00019178,2]
[365386096,1749640238782,-630.17910451,0.00019178,2]
[365386097,1749640238791,-630.17910451,0.00019178,2]
[365386098,1749640238801,-630.17910451,0.00019178,2]
[365386099,1749640238810,-630.17910451,0.00019178,2]
[365386100,1749640238819,-630.17910451,0.00019178,2]
[365386101,1749640238830,-630.17910451,0.00019178,2]
[365386102,1749640238839,-630.17910451,0.00019178,2]
[365386103,1749640238848,-630.17910451,0.00019178,2]
[365386104,1749640238858,-630.17910451,0.00019178,2]
[365386105,1749640238867,-630.17910451,0.00019178,2]
[365386106,1749640238876,-630.17910451,0.00019178,2]
[365386107,1749640238886,-630.17910451,0.00019178,2]
[365386108,1749640238895,-630.17910451,0.00019178,2]
[365386109,1749640238904,-630.17910451,0.00019178,2]
[365386110,1749640238913,-630.17910451,0.00019178,2]
[365386111,1749640238922,-630.17910451,0.00019178,2]
[365386112,1749640238931,-630.17910451,0.00019178,2]
[365386113,1749640238940,-630.17910451,0.00019178,2]
[365386114,1749640238950,-630.17910451,0.00019178,2]
[365386115,1749640238959,-630.17910451,0.00019178,2]
[365386116,1749640238968,-630.17910451,0.00019178,2]
[365386117,1749640238977,-630.17910451,0.00019178,2]
[365386118,1749640238987,-630.17910451,0.00019178,2]
[365386119,1749640238996,-630.17910451,0.00019178,2]
[365386120,1749640239005,-630.17910451,0.00019178,2]
[365386121,1749640239014,-630.17910451,0.00019178,2]
[365386122,1749640239023,-630.17910451,0.00019178,2]
[365386123,1749640239032,-630.17910451,0.00019178,2]
[365386124,1749640239041,-630.17910451,0.00019178,2]
[365386125,1749640239050,-630.17910451,0.00019178,2]
[365386126,1749640239059,-630.17910451,0.00019178,2]
[365386127,1749640239068,-48.42954939,0.00019178,2]
[365386128,1749640239080,-581.74955512,0.00019178,2]
[365386129,1749640239089,-630.17910451,0.00019178,2]
[365386130,1749640239099,-630.17910451,0.00019178,2]
[365386131,1749640239110,-630.17910451,0.00019178,2]
[365386133,1749640239119,-630.17910451,0.00019178,2]
[365386134,1749640239128,-150.47,0.0001999,2]
[365386135,1749640239137,-150.47,0.0001999,2]
[365386136,1749640239147,-150.47,0.0001999,2]
[365386137,1749640239156,-711153.32584021,0.0002,3]
[365386138,1749640239165,-18659.03368302,0.0002,3]
[365386139,1749640239174,-2691035.48087969,0.0002,2]
[365386140,1749640239189,-1122.78,0.0002,2]
[365386142,1749640240383,-595676.86181445,0.0002,2]
[365386143,1749640240437,-9123.5155809,0.0002,2]
[365386144,1749640240448,-4692.7587,0.0002,2]
[365386149,1749640243232,-325.85789867,0.0002,2]
[365386150,1749640243286,-4500.7012723,0.0002,2]
[365386151,1749640243340,-293.95336153,0.0002,2]
[365386152,1749640243399,-1872.72815922,0.0002,2]
[365386153,1749640243410,-1780.5883095,0.0002,2]
[365386165,1749640246854,-3385.20305407,0.0002,2]
[365386201,1749640424421,805.8,0.00024658,120]
[365386203,1749640523942,155.56,0.00013699,2]
[365386204,1749640712581,46.62467778,0.00016,2]
[365386205,1749640712601,353.39181222,0.00016,2]
[365386206,1749640719461,2501.91551088,0.00015,7]
[365386207,1749640719481,2855.3073231,0.00015,7]
[365386208,1749640719503,2855.3073231,0.00015,7]
[365386209,1749640719524,2855.3073231,0.00015,7]
[365386210,1749640719544,2855.3073231,0.00015,7]
[365386211,1749640719565,2855.3073231,0.00015,7]
[365386212,1749640719587,2855.3073231,0.00015,7]
[365386213,1749640719608,2855.3073231,0.00015,7]
[365386214,1749640719628,2855.3073231,0.00015,7]
[365386215,1749640719656,84552.62590432,0.00015,7]
[365386216,1749640747400,3451.0,0.00016,7]
[365386217,1749640799288,500.0,0.00024658,120]
[365386218,1749640864103,170.21,0.00014834,2]
[365386220,1749640932204,204.0,0.00015144,2]
[365386221,1749641111156,14502.99706426,0.000154,2]
[365386222,1749641120563,1790.18900385,9e-05,2]
[365386223,1749641163116,3004.07890982,8e-05,2]
[365386224,1749641243100,-512.14988324,0.00016164,2]
[365386225,1749641243125,-500.0,0.00016164,2]
[365386226,1749641243146,-160.0,0.00016164,2]
[365386227,1749641243168,-204.0,0.0001639,3]
[365386228,1749641243189,-300.0,0.00016448,2]
[365386229,1749641243209,-210.84638685,0.00016632,2]
[365386230,1749641243231,-250.0,0.00016732,2]
[365386231,1749641243250,-300.0,0.00016732,2]
[365386232,1749641243272,-210.84638685,0.00017177,2]
[365386233,1749641243526,-1200.0,0.00017274,2]
[365386234,1749641243547,-300.0,0.00017275,2]
[365386235,1749641243569,-300.0,0.00017275,2]
[365386236,1749641243588,-385.0,0.00017275,2]
[365386237,1749641243609,-286.06682252,0.00017276,2]
[365386238,1749641243630,-213.68241036,0.00017276,2]
[365386239,1749641243651,-8.69447172,0.00017276,2]
[365386240,1749641249134,-491.30552828,0.00017276,2]
[365386241,1749641249156,-500.0,0.00017276,2]
[365386242,1749641249179,-365.10735119,0.00017276,2]
[365386243,1749641259991,-5775.167751,0.00017189,2]
[365386244,1749641260019,-1022.22432515,0.00017276,2]
[365386245,1749641260042,-134.89264881,0.00017276,2]
[365386246,1749641260064,-500.0,0.00017276,2]
[365386247,1749641260088,-500.0,0.00017276,2]
[365386248,1749641260111,-436.75039849,0.00017276,2]
[365386249,1749641260135,-500.0,0.00017276,2]
[365386250,1749641260158,-500.0,0.00017276,2]
[365386251,1749641260182,-500.0,0.00017276,2]
[365386252,1749641260204,-294.74766466,0.00017276,2]
[365386253,1749641260232,-500.0,0.00017276,2]
[365386254,1749641260255,-500.0,0.00017276,2]
[365386255,1749641260277,-500.0,0.00017276,2]
[365386256,1749641260517,-500.0,0.00017276,2]
[365386257,1749641260562,-500.0,0.00017276,2]
[365386258,1749641260585,-500.0,0.00017276,2]
[365386259,1749641260607,-500.0,0.00017276,2]
[365386260,1749641260629,-500.0,0.00017276,2]
[365386261,1749641260651,-500.0,0.00017276,2]
[365386262,1749641260674,-500.0,0.00017276,2]
[365386263,1749641260697,-500.0,0.00017276,2]
[365386264,1749641260721,-500.0,0.00017276,2]
[365386265,1749641260743,-15083.22513199,0.00017277,2]
[365386266,1749641270508,4300.67152118,0.00013,2]
[365386267,1749641275076,1504.64262812,0.00015,2]
[365386268,1749641314513,2659.45676762,0.0001,2]
[365386270,1749641317300,260.85249167,0.000107,2]
[365386274,1749641321724,9290.68121736,0.00013368,2]
[365386300,1749641372465,500.0,0.00016164,2]
[365386331,1749641432444,-204.0,0.00016636,2]
[365386332,1749641432455,-200.0,0.00017058,2]
[365386333,1749641432464,-200.0,0.00017058,2]
[365386334,1749641432475,-248.78,0.00017058,2]
[365386335,1749641432487,-199.41640718,0.00017275,2]
[365386336,1749641432496,-500.0,0.00017275,2]
[365386337,1749641432506,-492.9722665,0.00017275,2]
[365386338,1749641432516,-300.0,0.00017275,2]
[365386339,1749641432527,-1200.0,0.00017275,2]
[365386340,1749641432537,-300.0,0.00017275,2]
[365386341,1749641432546,-10131.03132632,0.00017276,2]
[365386468,1749641438284,-300.0,0.00017276,2]
[365386469,1749641438446,-72740.39451196,0.00017276,2]
[365386470,1749641438455,-482.14483897,0.00017276,2]
[365386471,1749641438466,-158.94570006,0.00017276,2]
[365386472,1749641438478,-193.71783512,0.00017276,2]
[365386473,1749641438493,-255.26566066,0.00017276,2]
[365386474,1749641438503,-300.0,0.00017277,2]
[365386475,1749641438512,-30360.88486801,0.00017277,2]
[365386476,1749641438522,-193.28,0.00017277,2]
[365386477,1749641438532,-166.16,0.00017277,2]
[365386478,1749641438541,-1500.0,0.00017277,2]
[365386479,1749641438551,-205.0,0.00017368,2]
[365386480,1749641438561,-250.0,0.00017568,2]
[365386481,1749641438570,-300.0,0.00017568,2]
[365386482,1749641438579,-692.0,0.00017685,2]
[365386483,1749641438588,-1285.0,0.00017773,2]
[365386484,1749641438598,-250.0,0.0001778,2]
[365386485,1749641438607,-300.0,0.0001778,2]
[365386486,1749641438620,-300.0,0.0001778,2]
[365386487,1749641438629,-600.0,0.0001778,4]
[365386488,1749641438638,-488.9253791,0.00017808,2]
[365386489,1749641438647,-300.0,0.00017825,2]
[365386490,1749641438657,-501.36,0.00017841,2]
[365386492,1749641438667,-1347.82,0.00017877,2]
[365386494,1749641438676,-519.0,0.00017885,2]
[365386495,1749641438685,-202.30605246,0.000179,2]
[365386496,1749641438695,-204.0,0.00017912,3]
[365386497,1749641438704,-364.05458475,0.00017932,2]
[365386498,1749641438714,-1160.970804,0.00017932,2]
[365386499,1749641438724,-348.0,0.0001797,2]
[365386500,1749641438733,-1710.0,0.00017974,2]
[365386501,1749641438742,-4027.0,0.00018,2]
[365386502,1749641438752,-400.0,0.00018,2]
[365386503,1749641438761,-154.02,0.00018,2]
[365386527,1749641438936,-10021.05718361,0.00018,2]
[365386532,1749641439010,-261273.89478958,0.00018,2]
[365386534,1749641439020,-1385.33,0.00018032,2]
[365386537,1749641439030,-202.30605235,0.00018033,2]
[365386539,1749641439040,-364.05458458,0.00018036,2]
[365386541,1749641439050,-1964.0,0.0001806,2]
[365386543,1749641439060,-250.0,0.00018074,2]
[365386545,1749641439078,-364.05458458,0.00018139,2]
[365386547,1749641439092,-1101.0,0.00018149,2]
[365386549,1749641439112,-1160.97080391,0.00018151,2]
[365386551,1749641439123,-1000.0,0.00018164,2]
[365386553,1749641439132,-202.30605235,0.00018167,2]
[365386554,1749641439141,-931.0,0.00018193,2]
[365386556,1749641439150,-364.05458458,0.00018243,2]
[365386558,1749641439159,-202.30605235,0.000183,2]
[365386560,1749641439169,-364.05458458,0.00018346,2]
[365386561,1749641439178,-1160.97080391,0.00018369,2]
[365386563,1749641439187,-300.0,0.00018373,2]
[365386565,1749641439196,-202.30605235,0.00018433,2]
[365386567,1749641439207,-364.05458458,0.0001845,2]
[365386569,1749641439229,-150.0,0.00018543,7]
[365386571,1749641439239,-364.05458458,0.00018553,2]
[365386573,1749641439250,-202.30605235,0.00018567,2]
[365386575,1749641439259,-1160.97080391,0.00018588,2]
[365386577,1749641439269,-364.05458458,0.00018657,2]
[365386579,1749641439280,-202.30605235,0.000187,2]
[365386581,1749641439291,-364.05458458,0.00018761,2]
[365386583,1749641439301,-1160.97080391,0.00018807,2]
[365386585,1749641439311,-503.0,0.00018822,2]
[365386587,1749641439321,-202.30605235,0.00018833,2]
[365386589,1749641439331,-394.0,0.00018863,2]
[365386591,1749641439340,-420.0,0.00018863,2]
[365386593,1749641439350,-242.0,0.00018863,2]
[365386595,1749641439360,-364.05458458,0.00018864,2]
[365386597,1749641439370,-500.0,0.00018904,2]
[365386600,1749641439380,-300.0,0.00018921,2]
[365386602,1749641439390,-1680.0,0.00018956,2]
[365386603,1749641439399,-202.30605235,0.00018967,2]
[365386605,1749641439408,-364.05458458,0.00018968,2]
[365386607,1749641439417,-151.0,0.00018999,2]
[365386609,1749641439426,-207.4,0.00018999,2]
[365386611,1749641439435,-2623.0,0.00019,2]
[365386613,1749641439445,-250.0,0.00019,2]
[365386615,1749641439454,-1160.97080391,0.00019025,2]
[365386617,1749641439463,-364.05458458,0.00019071,2]
[365386619,1749641439473,-906.55645999,0.00019078,2]
[365386621,1749641439484,-271.9607,0.00019078,2]
[365386623,1749641439494,-202.30605235,0.000191,2]
[365386625,1749641439504,-364.05458458,0.00019175,2]
[365386627,1749641439514,-1070.28340695,0.00019178,2]
[365386629,1749641439524,-1070.28340695,0.00019178,2]
[365386631,1749641439535,-1070.28340695,0.00019178,2]
[365386633,1749641439544,-1070.28340695,0.00019178,2]
[365386635,1749641439554,-1070.28340695,0.00019178,2]
[365386637,1749641439566,-1070.28340695,0.00019178,2]
[365386639,1749641439576,-1070.28340695,0.00019178,2]
[365386641,1749641439587,-1070.28340695,0.00019178,2]
[365386643,1749641439596,-1070.28340695,0.00019178,2]
[365386645,1749641439605,-1070.28340695,0.00019178,2]
[365386647,1749641439614,-1070.28340695,0.00019178,2]
[365386649,1749641439625,-1070.28340695,0.00019178,2]
[365386651,1749641439634,-1070.28340695,0.00019178,2]
[365386653,1749641439643,-1070.28340695,0.00019178,2]
[365386655,1749641439653,-1070.28340695,0.00019178,2]
[365386657,1749641439662,-1070.28340695,0.00019178,2]
[365386659,1749641439671,-1070.28340695,0.00019178,2]
[365386661,1749641439681,-1070.28340695,0.00019178,2]
[365386663,1749641439691,-1070.28340695,0.00019178,2]
[365386665,1749641439700,-1070.28340695,0.00019178,2]
[365386667,1749641439710,-1070.28340695,0.00019178,2]
[365386669,1749641439721,-1070.28340695,0.00019178,2]
[365386671,1749641439731,-1070.28340695,0.00019178,2]
[365386673,1749641439740,-1070.28340695,0.00019178,2]
[365386675,1749641439750,-1070.28340695,0.00019178,2]
[365386677,1749641439760,-1070.28340695,0.00019178,2]
[365386679,1749641439770,-1070.28340695,0.00019178,2]
[365386681,1749641439781,-1070.28340695,0.00019178,2]
[365386683,1749641439791,-1070.28340695,0.00019178,2]
[365386685,1749641439800,-1070.28340695,0.00019178,2]
[365386687,1749641439809,-1070.28340695,0.00019178,2]
[365386689,1749641439819,-1070.28340695,0.00019178,2]
[365386691,1749641439828,-1070.28340695,0.00019178,2]
[365386693,1749641439838,-1070.28340695,0.00019178,2]
[365386694,1749641439847,-1070.28340695,0.00019178,2]
[365386696,1749641439857,-1070.28340695,0.00019178,2]
[365386698,1749641439867,-1070.28340695,0.00019178,2]
[365386700,1749641439877,-1070.28340695,0.00019178,2]
[365386702,1749641439887,-1070.28340695,0.00019178,2]
[365386704,1749641439896,-1070.28340695,0.00019178,2]
[365386706,1749641439906,-1070.28340695,0.00019178,2]
[365386708,1749641439915,-1070.28340695,0.00019178,2]
[365386710,1749641439925,-1070.28340695,0.00019178,2]
[365386712,1749641439935,-1070.28340695,0.00019178,2]
[365386714,1749641439945,-1070.28340695,0.00019178,2]
[365386716,1749641439954,-1070.28340695,0.00019178,2]
[365386718,1749641439964,-1070.28340695,0.00019178,2]
[365386720,1749641439973,-1070.28340695,0.00019178,2]
[365386722,1749641439984,-1070.28340695,0.00019178,2]
[365386724,1749641439993,-1070.28340695,0.00019178,2]
[365386726,1749641440003,-1070.28340695,0.00019178,2]
[365386728,1749641440013,-1070.28340695,0.00019178,2]
[365386730,1749641440023,-1070.28340695,0.00019178,2]
[365386732,1749641440032,-1070.28340695,0.00019178,2]
[365386734,1749641440042,-1070.28340695,0.00019178,2]
[365386736,1749641440051,-1070.28340695,0.00019178,2]
[365386738,1749641440061,-1070.28340695,0.00019178,2]
[365386740,1749641440071,-1070.28340695,0.00019178,2]
[365386742,1749641440080,-1070.28340695,0.00019178,2]
[365386744,1749641440089,-1059.58057288,0.00019178,2]
[365386746,1749641440098,-1059.58057288,0.00019178,2]
[365386748,1749641440107,-1059.58057288,0.00019178,2]
[365386750,1749641440116,-1059.58057288,0.00019178,2]
[365386752,1749641440126,-1059.58057288,0.00019178,2]
[365386754,1749641440135,-1059.58057288,0.00019178,2]
[365386757,1749641440145,-1059.58057288,0.00019178,2]
[365386759,1749641440154,-1059.58057288,0.00019178,2]